Cogmind - Beta 11.1 @@@ ROGUE MODE // 2022.09.27 @ 00:08:34 Player: Coronach Result: Self-destructed Performance ------------- Evolutions (1) 500 Regions Visited (2) 400 Robots Destroyed (6) 30 Value Destroyed (135) 135 Prototype IDs (0) 0 Alien Tech Used (0) 0 Bonus (0) 0 TOTAL SCORE: 1065 Bonus ------- None Cogmind --------- Core Integrity 400/400 Matter 217/300 Energy 250/250 System Corruption 0% Temperature Cool (0) Movement Rolling (100) Location -9/Materials Parts ------- > --- POWER (1) -------- Ion Engine > --- PROPULSION (3) --- Compact Wheel Compact Wheel Compact Wheel > --- UTILITY (3) ------ Large Storage Unit Improved Terrain Scanner Seismic Detector > --- WEAPON (2) ------- Assault Rifle Assault Rifle > --- INVENTORY (15) --- Light Ion Engine Large Storage Unit High-capacity Matter Pod (0) EM Pulse Gun EM Pulse Gun Mining Laser Peak State ------------ > --- POWER ------------ Ion Engine > --- PROPULSION ------- Compact Wheel Compact Wheel Compact Wheel > --- UTILITY ---------- Large Storage Unit Improved Terrain Scanner Seismic Detector > --- WEAPON ----------- Assault Rifle Assault Rifle > --- INVENTORY -------- Light Ion Engine Large Storage Unit High-capacity Matter Pod EM Pulse Gun EM Pulse Gun Mining Laser [Rating: 11] Favorites ----------- Power Ion Engine Engine Ion Engine Propulsion Aluminum Leg Leg Aluminum Leg Wheel Compact Wheel Utility Improved Terrain Scanner Device Improved Terrain Scanner Storage Small Storage Unit Weapon Assault Rifle Ballistic Gun Assault Rifle Special Weapon Mining Laser Build | -11 -10 -9 ------- Run | Scr Mat Mat Slots Evolved 2 | . . 2 Power . | . . . Propulsion 1 | . . 1 Utility 1 | . . 1 Weapon . | . . . Parts Attached 11 | 2 5 4 Power . | . . . Engine . | . . . Core . | . . . Reactor . | . . . Propulsion 4 | . 1 3 Treads . | . . . Leg 1 | . 1 . Wheel 3 | . . 3 Hover . | . . . Flight . | . . . Utility 3 | 1 1 1 Device 2 | 1 . 1 Storage 1 | . 1 . Processor . | . . . Hackware . | . . . Protection . | . . . Artifact . | . . . Weapon 4 | 1 3 . Energy Gun . | . . . Energy Cannon . | . . . Ballistic Gun 3 | 1 2 . Ballistic Cannon . | . . . Launcher . | . . . Special Weapon 1 | . 1 . Impact Weapon . | . . . Slashing Weapon . | . . . Piercing Weapon . | . . . Special Melee Weapon . | . . . Unidentified Prototypes . | . . . Parts Lost . | . . . Power . | . . . Propulsion . | . . . Utility . | . . . Weapon . | . . . Highest Loss Streak . | . . . To Critical Strikes . | . . . Average Slot Usage (%) 100 | . 100 100 Engine 13 | . 14 11 Leg 20 | . 28 . Wheel 8 | . . 33 Device 16 | . 14 22 Storage 13 | . 14 11 Ballistic Gun 24 | . 25 22 Special Weapon 2 | . 2 . Naked Turns . | . . . Heaviest Build 31 | 15 30 31 Greatest Support 48 | 20 20 48 Greatest Overweight (x) 1 | . 1 . Average Overweight (x) . | . . . Largest Inventory Capacity 15 | 8 15 15 Average Capacity 10 | 8 9 15 Most Carried 10 | 7 10 9 Average Carried 7 | 4 7 6 Final Capacity 15 | 8 15 15 Final Carried 10 | 7 10 6 Class Distribution -------------------- 100% | Mutant Dominant Class ---------------- Mutant | -10/Materials Mutant | -9/Materials Resources | -11 -10 -9 ----------- Run | Scr Mat Mat Matter Collected 329 | 262 67 . Remotely . | . . . Salvage Created 270 | 145 125 . Parts 14 | 8 6 . Haulers Intercepted . | . . . Recyclers Shooed 1 | 1 . . Parts Field Recycled . | . . . Retrieved Matter . | . . . Parts Self-Destructed . | . . . Prevented . | . . . Kills | -11 -10 -9 ------- Run | Scr Mat Mat Combat Hostiles Destroyed 3 | . 3 . Guns 3 | . 3 . Classes Destroyed 3 | 2 1 . Tunneler 2 | 2 . . Recycler 1 | 1 . . Grunt 3 | . 3 . Best Kill Streak 2 | 2 2 . Combat Bots Only 2 | . 2 . Max Kills in Single Turn 1 | 1 1 . Gunslinging . | . . . Exploded . | . . . Melee . | . . . Uniques/NPCs Destroyed . | . . . Combat | -11 -10 -9 -------- Run | Scr Mat Mat Damage Taken 158 | . 158 . Core 43 | . 43 . Absorbed by Shields . | . . . Core Remaining (%) 91 | 100 82 . Volleys Fired 22 | 7 15 . Largest 2 | 2 2 . Hottest 100 | 40 100 . Shots Fired 39 | 14 25 . Gun 34 | 14 20 . Cannon . | . . . Launcher . | . . . Special 5 | . 5 . Kinetic 34 | 14 20 . Thermal 5 | . 5 . Explosive . | . . . Electromagnetic . | . . . Robot Hit Streak 13 | 3 13 . Robot Miss Streak 3 | 3 2 . Penetration Max . | . . . Secondary Targets 1 | . 1 . Max Gunslinging Chain 1 | . 1 . Shots Hit Robots 21 | 6 15 . Core Hits 11 | 4 7 . Critical Kills . | . . . Critical Parts Destroyed . | . . . Critical Strikes . | . . . Melee Attacks . | . . . Impact . | . . . Slashing . | . . . Piercing . | . . . Sneak Attacks . | . . . Combat Hostiles . | . . . Follow-up Attacks . | . . . Damage Inflicted 250 | 75 175 . Guns 250 | 75 175 . Cannons . | . . . Explosions . | . . . Melee . | . . . Ramming . | . . . Kinetic 250 | 75 175 . Thermal . | . . . Explosive . | . . . Electromagnetic . | . . . Impact . | . . . Slashing . | . . . Piercing . | . . . Highest Corruption . | . . . Average Corruption . | . . . Corruption Purged . | . . . Corruption Blocked . | . . . Overload Shots . | . . . Overflow Damage . | . . . Projectiles . | . . . Explosions . | . . . Melee . | . . . Knockbacks . | . . . Impact . | . . . Kinetic . | . . . Secondary . | . . . Self-Inflicted Damage . | . . . Shots . | . . . Rammed . | . . . Targets Rammed . | . . . Kicked . | . . . Crushed . | . . . Highest Temperature 62 | . 62 . Average Temperature 25 | . 25 . Received Heat Transfer 78 | . 78 . Siege Activations . | . . . Robots Corrupted . | . . . Combat Hostiles . | . . . Parts Fried . | . . . Impact Corruptions . | . . . Robots Melted . | . . . Combat Hostiles . | . . . Parts Melted . | . . . Heat Transferred . | . . . Parts Sabotaged . | . . . Parts Stolen . | . . . Parts Stripped . | . . . Power Chain Reactions . | . . . Missiles Intercepted . | . . . Alert | -11 -10 -9 ------- Run | Scr Mat Mat Peak Influence 164 | 15 164 21 Initial 9 | . 9 . Average 63 | 9 89 18 Maximum Alert Level . | . . . Low Security (%) 100 | 100 100 100 Level 1 . | . . . Level 2 . | . . . Level 3 . | . . . Level 4 . | . . . Level 5 . | . . . High Security . | . . . Max Security . | . . . Squads Dispatched 1 | . 1 . Investigation . | . . . Extermination . | . . . Reinforcement 1 | . 1 . Assault . | . . . Garrison . | . . . Intercept . | . . . Searches Triggered . | . . . Construction Impeded . | . . . Haulers Reinforced . | . . . Active Scanning Responses . | . . . Cargo Convoy Interrupts . | . . . Stealth | -11 -10 -9 --------- Run | Scr Mat Mat Distress Signals 1 | . 1 . Communications Jammed . | . . . Distress Signals . | . . . Times Spotted 15 | . 5 10 Peak Tracking Total 10 | . 3 10 Tactical Retreats . | . . . Traps | -11 -10 -9 ------- Run | Scr Mat Mat Traps Triggered 2 | . 2 . Indirectly . | . . . Trap Hack Attempts . | . . . Triggered . | . . . Disarmed . | . . . Reprogrammed . | . . . Reused . | . . . Traps Extracted . | . . . Installed . | . . . Triggered . | . . . Machines | -11 -10 -9 ---------- Run | Scr Mat Mat Machines Disabled . | . . . Max in Single Turn . | . . . Machines Sabotaged . | . . . Garrisons Compromised . | . . . Overloaded Fab Kills . | . . . Hacking | -11 -10 -9 --------- Run | Scr Mat Mat Machines Accessed 5 | . 4 1 Terminals 4 | . 3 1 Fabricators . | . . . Repair Stations . | . . . Recycling Units 1 | . 1 . Scanalyzers . | . . . Garrison Access . | . . . Total Hacks 18 | . 16 2 Successful 11 | . 9 2 Failed 7 | . 7 . Catastrophic . | . . . Database Lockouts . | . . . Manual 14 | . 12 2 Terminals 12 | . 10 2 Fabricators . | . . . Repair Stations . | . . . Recycling Units 6 | . 6 . Scanalyzers . | . . . Garrison Access . | . . . Terminal Hacks 2 | . 1 1 Terminal Index 2 | . 1 1 Fabricator Hacks . | . . . Repair Station Hacks . | . . . Recycling Unit Hacks 1 | . 1 . Report Inventory 1 | . 1 . Scanalyzer . | . . . Garrison Access Hacks . | . . . Unauthorized Hacks 8 | . 7 1 Terminals 4 | . 3 1 Botnet 3 | . 2 1 Operators 1 | . 1 . Fabricators . | . . . Repair Stations . | . . . Recycling Units 4 | . 4 . Monitor 1 | . 1 . Reject 1 | . 1 . Recyclers 1 | . 1 . Mask 1 | . 1 . Scanalyzers . | . . . Garrison Access . | . . . Data Cores Recovered . | . . . Used . | . . . Hacking Detections 5 | . 4 1 Full Trace Events . | . . . Feedback Events . | . . . Feedback Blocked . | . . . Robot Schematics Acquired . | . . . Robots Built . | . . . Authchips . | . . . Time . | . . . Total Robot Build Rating . | . . . Part Schematics Acquired . | . . . Parts Built . | . . . Authchips . | . . . Time . | . . . Total Part Build Rating . | . . . Parts Repaired . | . . . Time . | . . . Parts Recycled . | . . . Recycled Matter . | . . . Retrieved Matter . | . . . Retrieved Components . | . . . Parts Scanalyzed . | . . . Part Schematics Acquired . | . . . Parts Damaged . | . . . Bothacking | -11 -10 -9 ------------ Run | Scr Mat Mat Used RIF Installer . | . . . Robots Hacked . | . . . Non-combat . | . . . Combat . | . . . Robot Hacks Applied . | . . . Relay Couplers Released . | . . . Fabnet Peak Effective % . | . . . Robots Rewired . | . . . Allies Hacked . | . . . Hacks Repelled . | . . . Allies | -11 -10 -9 -------- Run | Scr Mat Mat Total Allies . | . . . Largest Group . | . . . Highest-Rated Group . | . . . Highest-Rated Ally . | . . . Total Orders . | . . . Ally Attacks . | . . . Total Damage . | . . . Kills . | . . . Allies Corrupted . | . . . Allies Melted . | . . . Intel | -11 -10 -9 ------- Run | Scr Mat Mat Robot Analysis Total . | . . . Derelict Logs Recovered . | . . . Drone Launches . | . . . Drone Recoveries . | . . . Exploration | -11 -10 -9 ------------- Run | Scr Mat Mat Turns Passed 630 | 82 408 140 Spaces Moved 432 | 44 255 133 Core . | . . . Treads . | . . . Legs 299 | 44 255 . Wheels 133 | . . 133 Hover . | . . . Flight . | . . . Fastest Speed 100 | 120 120 100 Average Speed 119 | 120 130 100 Slowest Speed 190 | 120 190 100 Overloaded Moves . | . . . Propulsion Burnouts . | . . . Robots Hopped . | . . . Cave-ins Triggered . | . . . Exploration Rate (%) 20 | 5 40 17 Regions Visited 2 Branch Regions . Pre-discovered Areas . | . . . Known Exits Taken . | . . . Unknown Exits Taken 2 | 1 1 . Scrap Searched . | . . . Spaces Dug 5 | . 5 . Terrain Destroyed 5 | . 5 . Melee . | . . . Projectile 5 | . 5 . AOE . | . . . Terrain Rammed . | . . . Walls Destroyed . | . . . Machines Disabled . | . . . Actions | -11 -10 -9 --------- Run | Scr Mat Mat Total 495 | 59 296 140 Wait 17 | . 16 1 Move 430 | 43 254 133 Hop . | . . . Pick Up 8 | 4 4 . Fast Attach 3 | 1 2 . Attach 4 | . . 4 Detach . | . . . Swap 4 | 1 3 . Drop 7 | 3 2 2 Fire 22 | 7 15 . Melee . | . . . Ram . | . . . Kick . | . . . Crush . | . . . Escape Stasis . | . . . Rewire . | . . . Trap . | . . . Miscellaneous . | . . . Route ------- -11/Scrapyard -10/Materials (discovered 2 exits: *Mat / [*Min]) -9/Materials History --------- Turn | Location | Event 23 | -11/Scrapyard | Discovered new exit (range 3) 83 | -11/Scrapyard | Entered Materials 303 | -10/Materials | Build established: Mutant 305 | -10/Materials | Discovered new exit (range 15) 412 | -10/Materials | Discovered new exit (range 13) 491 | -10/Materials | Entered another Materials area 491 | -9/Materials | Evolved 2 slots: Propulsion x1, Utility x1 631 | -9/Materials | Self-destructed Last Messages --------------- 00412_ EXIT=FOUND 00421_ Dropped Sml. Storage Unit. 00422_ U-05 Engineer lays Concrete. 00435_ R-06 Scavenger collects Sml. Storage Unit. 00449_ Acquired Hcp. Matter Pod. 00477_ Acquired Lrg. Storage Unit. PARAMETERS=PROPULSION+1,UTILITY+1 LOCATION=UNKNOWN GOAL=ESCAPE 00492_ Dropped Aluminum Leg. 00503_ Connecting with Terminal... 00503_ Current location identified: Materials >>Trojan(Botnet) Trojan loaded successfully. Testing... Terminal linked with 0 systems. Awaiting botnet instructions. >>Index(Terminals) Found 12 terminals. Downloaded coordinate data. Map ----- +----------------------------------------------------+ | ?????????????????????????????????# """ ??? | | ?????????????????????????????????+ """ "" ??? | | ?????????????????????????????????? """ T" ??? | | ??????????????????????????????????# "" #??? | | ?????????????????????????????????## ?? #??? | | ??????????????????????????????????# ???? #??? | | ??????????????????????????????????# #?##+##+#### | | ??????????????????????????????????# ### | | ?????????????????????? ??????????## ### | | ??????????????????????????????????# #?# | | ????????? ??????????????????????# #?# | | ?? ?????# ?????????????????????# ########/### | | ????????/ #?????????????????????# # #?? | | ????????# #????????????? ???????# # """ #?? | | ??????? # #????????? ????????#??# # """ #?? | | ????????# #??#?????????#????????# # """ #?? | | ????????# #??????#??????????????# # #?? | | ????????# #?????????? ???????#??# # #?? | | ??#?????# #?????????????????????# # =! #?? | | ????????# +?????"???????##???##?# / = #?? | | ######### # ?????????"??????????# # #?? | | # #???? ???????#######??# ##########?? | | """ " # l############## #### #??????#?#?? | | ?"""" T # u t gg #??????????? | | ?"""" " + g #??????????? | | ?"""" # g @ #??????????? | | ?""" # ###+########## k ###+#+##??#?#?????? | | # # ???????###+###?# ???#??????? | | # = # ?????? ??# ?????????# | | ######### = #[ #??# """# #????????? | | ????????##### """ #??# """# #????????? | | ????????????# """"" #??# """# #????????? | | ????????????# """"" #??# # #????????? | | ????????????# """"" #??#! """########????????? | | ????????????# ""??? #??# """#???????????????? | | #???????????# ???????#??# """?#??????????????? | | ????????????##????#?????# ????????????#????? | | ????????????????????????#######??????????????????? | | ?????????????????????????????????????????????????? | | ?????????????????????????????????????????????????? | | | | | | | | | | | | | | | | | | | | | +----------------------------------------------------+ Best States ------------- Heat Dissipation 28 Energy Generation 10 Energy Capacity 250 Matter Stores 300 Matter Capacity 300 Sight Range 16 Terrain Scan Range 16 Terrain Scan Density 10 Evasion (%) 55 Item Schematics ----------------- None Robot Schematics ------------------ None Fabricated ------------ Nothing Alien Tech Used ----------------- None Achievements -------------- None Challenges ------------ None Game ------ Seed StealthIntegrityWeb Manual? 0 Play Time 00:14:21 Cumulative 208.8 hours Start 2022.09.26 @ 23:56:36 End 2022.09.27 @ 00:08:34 Sessions 1 Manual Loads 0 Difficulty Rogue Special Mode None Game No. 73 Rogue 70 Adventurer 0 Explorer 3 Win Type - Total 3 Types 2/0/0/1/0/0/0/0/0 Lore% 46 Gallery% 67 Achievement% 49 Wizard Run 0 Options --------- ASCII 0 Keyboard 0 Movement Numpad Keybinds 0 Fullscreen 2 Font 18/X11 Map View 76x50 Tactical HUD 1 Map Filters NONE Filters NONE Steam 1 RUN: c8e46989-d7c1-4d26-9a8a-86af9a12619e